bitfinex-derivatives/quotes_SOLF0:USTF0_20250127
["timestamp","ask_amount","ask_price","bid_price","bid_amount"]
[1738017405148,6.76782761,235.02,234.94,6.76782761]
[1738017405444,6.76782761,234.98,234.92,9.69017864]
[1738017405749,6.76782761,235.0,234.92,9.69017864]
[1738017405952,6.76782761,234.96,234.9,176.38201674]
[1738017406249,4.2573,234.95,234.94,0.03221367]
[1738017407039,6.76782761,234.96,234.94,0.03221367]
[1738017407241,6.7949876,234.98,234.94,0.03221367]
[1738017409346,6.76782761,234.95,234.94,0.03221367]
[1738017410253,6.76782761,234.95,234.85,6.76782761]
[1738017410456,6.76782761,234.89,234.79,11.2966735]
[1738017410955,4.2587,234.87,234.79,11.2966735]
[1738017411146,6.76782761,234.89,234.79,11.2966735]
[1738017411454,0.03144712,234.86,234.82,0.02954554]
[1738017412955,0.03144712,234.86,234.84,4.2592]
[1738017413154,0.03144712,234.86,234.82,0.02954554]
[1738017414055,4.29044712,234.86,234.82,0.02954554]
[1738017414249,0.03144712,234.86,234.82,0.02954554]
[1738017415553,0.03144712,234.86,234.84,4.2591]
[1738017415754,0.03144712,234.86,234.83,1.4037]
[1738017416454,0.03144712,234.86,234.85,4.259]
[1738017417757,4.2575,234.94,234.89,4.2582]
[1738017418154,10.44516116,234.97,234.83,1.4037]
[1738017418454,10.44516116,234.97,234.89,4.2583]
[1738017418760,0.02737723,234.95,234.91,0.02790862]
[1738017419255,4.2576,234.93,234.91,0.02790862]
[1738017419459,0.02737723,234.95,234.91,0.02790862]
[1738017419754,4.2578,234.92,234.91,0.02790862]
[1738017419960,0.02737723,234.95,234.91,0.02790862]
[1738017420355,4.2577,234.93,234.91,0.02790862]
[1738017420557,0.02737723,234.95,234.91,0.02790862]
[1738017421062,4.2578,234.92,234.91,0.02790862]
[1738017425462,10.44516116,234.93,234.77,10.44516116]
[1738017425662,1.3768,234.91,234.77,10.44516116]
[1738017426165,10.44516116,234.89,234.73,10.44516116]
[1738017426662,0.0268298,234.83,234.79,0.02735844]
[1738017427357,4.26,234.8,234.79,0.02735844]
[1738017431758,4.2598,234.82,234.79,0.02735844]
[1738017431957,0.0268298,234.83,234.79,0.02735844]
[1738017432363,0.0268298,234.83,234.79,4.28735844]
[1738017432862,0.0268298,234.83,234.8,4.2599]
[1738017433066,0.0268298,234.83,234.79,0.02735844]
[1738017433665,0.0268298,234.83,234.79,10.4725196]
[1738017433964,10.44516116,234.99,234.79,10.4725196]
[1738017434168,4.2579,234.92,234.87,4.2586]
[1738017435074,4.28969135,234.92,234.87,4.28995497]
[1738017437074,0.03179135,234.92,234.87,4.28995497]
[1738017437274,4.258,234.91,234.87,4.28995497]
[1738017448485,4.2585,234.88,234.87,0.03135497]
[1738017450080,11.03686015,234.88,234.87,0.03135497]
[1738017450285,4.2585,234.88,234.87,0.03135497]
[1738017453082,11.03686015,234.88,234.87,0.03135497]
[1738017455685,4.2585,234.88,234.87,0.03135497]
[1738017458789,11.03686015,234.88,234.87,0.03135497]
[1738017463493,11.03686015,234.88,234.87,5.497e-05]
[1738017482106,4.2582,234.9,234.87,5.497e-05]
[1738017482304,0.03179135,234.92,234.87,5.497e-05]
[1738017483006,0.03179135,234.92,234.88,4.2585]
[1738017484799,0.03179135,234.92,234.9,4.2581]
[1738017485397,0.03179135,234.92,234.88,4.2583]
[1738017485810,0.03179135,234.92,234.87,5.497e-05]
[1738017486704,4.2583,234.9,234.87,5.497e-05]
[1738017487007,0.03179135,234.92,234.87,5.497e-05]
[1738017487199,0.03179135,234.92,234.91,4.258]
[1738017487598,0.03179135,234.92,234.88,1.42]
[1738017487803,0.03179135,234.92,234.9,4.2581]
[1738017491812,0.03179135,234.92,234.88,1.42]
[1738017492814,4.28959135,234.92,234.88,1.42]
[1738017494415,4.258,234.91,234.88,1.42]
[1738017496012,4.2581,234.9,234.88,1.42]
[1738017500315,0.03179135,234.92,234.88,1.42]
[1738017500513,4.2585,234.88,234.87,5.497e-05]
[1738017507325,6.77836015,234.89,234.75,187.0385]
[1738017507523,6.77836015,234.81,234.75,187.0385]
[1738017508320,4.2607,234.76,234.75,187.0385]
[1738017510224,4.2607,234.76,234.75,185.6714]
[1738017510728,4.261,234.74,234.73,0.02764128]
[1738017514524,4.261,234.74,234.73,4.128e-05]
[1738017515630,1.4106,234.77,234.73,4.128e-05]
[1738017515930,6.77836015,234.79,234.73,4.128e-05]
[1738017516131,4.2609,234.75,234.73,4.128e-05]
[1738017516326,6.77836015,234.77,234.73,4.128e-05]
[1738017516832,4.261,234.74,234.73,4.128e-05]
[1738017517532,11.03936015,234.74,234.73,4.128e-05]
[1738017519632,4.2619,234.7,234.58,6.77836015]
[1738017519832,6.77836015,234.68,234.58,6.77836015]
[1738017520136,6.77836015,234.68,234.59,4.2636]
[1738017520740,0.0276403,234.66,234.61,0.02807673]
[1738017521132,4.2628,234.65,234.61,0.02807673]
[1738017523239,0.0276403,234.66,234.62,4.2631]
[1738017524238,4.2901403,234.66,234.61,4.29147673]
[1738017525337,6.77836015,234.74,234.64,6.77836015]
[1738017525539,6.77836015,234.74,234.61,185.69947673]
[1738017525540,0.19581,234.77,234.68,6.77836015]
[1738017525931,4.2608,234.76,234.7,4.2616]
[1738017526439,0.19581,234.77,234.7,4.2616]
[1738017526636,4.29059005,234.75,234.71,0.0274968]
[1738017526835,6.77836015,234.74,234.71,0.0274968]
[1738017527242,4.2614,234.72,234.71,0.0274968]
[1738017530843,4.2614,234.72,234.71,9.68e-05]
[1738017536647,11.03976015,234.72,234.71,9.68e-05]
[1738017539847,4.263,234.63,234.62,185.6714]
[1738017543752,4.2634,234.61,234.6,0.02999918]
[1738017544247,6.77836015,234.64,234.6,0.02999918]
[1738017544452,0.02995737,234.65,234.6,4.29349918]
[1738017545451,4.29275737,234.65,234.6,4.29349918]
[1738017545848,0.02995737,234.65,234.6,6.80835933]
[1738017547758,0.02995737,234.65,234.62,4.2631]
[1738017551962,0.02995737,234.65,234.6,185.70139918]
[1738017553167,6.77836015,234.63,234.6,185.70139918]
[1738017553962,6.80831752,234.65,234.6,185.70139918]
[1738017554161,0.02995737,234.65,234.6,185.70139918]
[1738017555064,4.29265737,234.65,234.6,185.70139918]
[1738017556061,4.29265737,234.65,234.62,4.2632]
[1738017557362,4.29265737,234.65,234.61,4.2634]
[1738017557958,4.2632,234.62,234.6,185.70139918]
[1738017559163,4.2634,234.61,234.6,185.70139918]
[1738017561466,6.77836015,234.61,234.5,6.77836015]
[1738017561771,6.77836015,234.58,234.51,4.2651]
[1738017562168,4.2643,234.56,234.51,4.2651]
[1738017562362,6.77836015,234.58,234.51,4.2651]
[1738017562768,0.03115274,234.57,234.52,0.03273873]
[1738017563169,4.2649,234.53,234.52,0.03273873]
[1738017568375,0.03115274,234.57,234.52,0.03273873]
[1738017569172,0.03115274,234.57,234.55,4.2645]
[1738017570783,0.03115274,234.57,234.54,4.2646]
[1738017571385,0.03115274,234.57,234.52,0.03273873]
[1738017571386,0.03115274,234.57,234.56,4.2643]
[1738017572984,0.03115274,234.57,234.52,0.03273873]
[1738017573184,0.03115274,234.57,234.53,4.2648]
[1738017574175,4.29535274,234.57,234.53,4.2648]
[1738017578076,6.77836015,234.54,234.52,0.03273873]
[1738017578281,4.2649,234.53,234.52,0.03273873]
[1738017581485,6.77836015,234.54,234.42,179.03919918]
[1738017581691,6.77836015,234.45,234.36,181.93629918]
[1738017581991,6.77836015,234.45,234.36,180.45909918]
[1738017582292,4.267,234.42,234.36,184.72699918]
[1738017582789,0.02750957,234.41,234.37,0.02713184]
[1738017582986,6.80586972,234.41,234.37,0.02713184]
[1738017583184,6.77836015,234.39,234.37,0.02713184]
[1738017584894,11.04576015,234.39,234.37,0.02713184]
[1738017585293,6.77836015,234.39,234.37,0.02713184]
[1738017585493,4.2676,234.38,234.37,0.02713184]
[1738017586193,4.2676,234.38,234.36,179.03919918]
[1738017586387,6.77836015,234.37,234.36,179.03919918]
[1738017586587,6.77836015,234.37,234.29,6.77836015]
[1738017586792,6.77836015,234.37,234.33,4.2683]
[1738017587095,6.77836015,234.37,234.29,6.77836015]
[1738017587391,6.80606391,234.37,234.33,0.03109422]
[1738017587788,6.80606391,234.37,234.33,4.29949422]
[1738017588894,4.268,234.36,234.33,0.03109422]
[1738017589493,4.2681,234.35,234.33,0.03109422]
[1738017590595,4.2683,234.34,234.33,0.03109422]
[1738017593703,6.77836015,234.35,234.33,0.03109422]
[1738017593901,11.04646015,234.35,234.33,0.03109422]
[1738017594903,4.2683,234.34,234.33,0.03109422]
[1738017600903,0.02770376,234.37,234.33,0.03109422]
[1738017601105,6.77836015,234.44,234.33,1.36299422]
[1738017601306,6.77836015,234.44,234.34,1.4513]
[1738017601809,11.04506015,234.44,234.34,1.4513]
[1738017602202,0.02908962,234.41,234.34,180.49049918]
[1738017602408,0.02908962,234.41,234.35,6.77836015]
[1738017602606,6.98217015,234.47,234.4,4.2672]
[1738017602809,0.20381,234.47,234.41,6.77836015]
[1738017603106,0.20381,234.47,234.41,185.81755933]
[1738017603307,0.20381,234.47,234.41,179.03919918]
[1738017604008,0.03100815,234.46,234.42,0.02864774]
[1738017604608,4.2664,234.45,234.42,0.02864774]
[1738017604805,0.03100815,234.46,234.42,0.02864774]
[1738017606412,4.29730815,234.46,234.42,0.02864774]
[1738017607111,4.2663,234.45,234.42,0.02864774]
[1738017609508,0.03100815,234.46,234.42,0.02864774]
[1738017610010,0.03100815,234.46,234.42,4.29544774]
[1738017610505,0.03100815,234.46,234.42,0.02864774]
[1738017610711,0.03100815,234.46,234.44,4.2665]
[1738017611707,0.03100815,234.46,234.43,4.2666]
[1738017614515,0.03100815,234.46,234.42,0.02864774]
[1738017615207,0.03100815,234.46,234.43,4.2666]
[1738017616806,0.03100815,234.46,234.42,0.02864774]
[1738017617005,0.03100815,234.46,234.42,1.42564774]
[1738017617406,0.03100815,234.46,234.43,6.77836015]
[1738017617711,0.03100815,234.46,234.45,4.2663]
[1738017618511,0.20381,234.47,234.46,4.2661]
[1738017619909,0.02695342,234.49,234.43,6.77836015]
[1738017620108,12.7822,234.76,234.47,6.77836015]
[1738017620109,6.77836015,234.57,234.47,6.77836015]
[1738017620306,6.77836015,234.57,234.47,185.81755933]
[1738017621215,0.031007,234.54,234.51,4.2652]
[1738017622113,6.77836015,234.62,234.55,4.2644]
[1738017622315,6.77836015,234.62,234.53,185.81755933]
[1738017622808,5.88627492,234.63,234.53,185.81755933]
[1738017623012,5.88627492,234.63,234.55,6.77836015]
[1738017623217,0.0297402,234.6,234.56,0.030138]
[1738017623817,0.0297402,234.6,234.57,4.2641]
[1738017624116,0.0297402,234.6,234.56,0.030138]
[1738017624814,0.0297402,234.6,234.58,4.2638]
[1738017626718,4.2631,234.63,234.58,4.2638]
[1738017626920,4.2631,234.63,234.56,0.030138]
[1738017627121,4.2628,234.65,234.56,0.030138]
[1738017627319,6.77836015,234.66,234.56,0.030138]
[1738017627918,0.0326872,234.63,234.56,0.030138]
[1738017628122,0.0326872,234.63,234.57,6.77836015]
[1738017629625,4.2634,234.62,234.57,6.77836015]
[1738017629826,0.0326872,234.63,234.56,4.294438]
[1738017630027,0.0326872,234.63,234.56,0.030138]
[1738017630225,4.2641,234.58,234.56,0.030138]
[1738017631629,6.77836015,234.62,234.56,0.030138]
[1738017631928,4.2641,234.57,234.56,0.030138]
[1738017637031,4.2641,234.57,234.53,179.03919918]
[1738017637032,4.2647,234.54,234.53,179.03919918]
[1738017637232,6.77836015,234.54,234.43,190.08415933]
[1738017637533,6.77836015,234.51,234.43,190.08415933]
[1738017638133,4.2659,234.48,234.45,0.02967377]
[1738017639131,0.03240378,234.49,234.45,0.02967377]
[1738017639330,4.2659,234.47,234.45,0.02967377]
[1738017640532,0.03240378,234.49,234.45,0.02967377]
[1738017640732,4.2658,234.48,234.45,0.02967377]
[1738017646837,0.03240378,234.49,234.45,0.02967377]
[1738017647040,4.2658,234.48,234.45,0.02967377]
[1738017648136,4.2661,234.46,234.45,0.02967377]
[1738017653551,4.06143,234.46,234.45,0.02967377]
[1738017654952,11.04416015,234.48,234.45,0.02967377]
[1738017655347,4.266,234.47,234.45,0.02967377]
[1738017655548,6.77836015,234.48,234.45,0.02967377]
[1738017655749,6.77836015,234.48,234.37,179.03919918]
[1738017655950,6.77836015,234.44,234.37,179.03919918]
[1738017656149,6.77836015,234.44,234.23,1.4374]
[1738017656150,6.77836015,234.38,234.27,6.77836015]
[1738017656451,4.2689,234.31,234.27,6.77836015]
[1738017656847,0.02878351,234.31,234.27,0.03155667]
[1738017657050,4.2693,234.29,234.27,0.03155667]
[1738017657347,0.02878351,234.31,234.27,0.03155667]
[1738017657653,0.02878351,234.31,234.21,6.77836015]
[1738017657949,6.77836015,234.29,234.19,170.52979918]
[1738017658148,6.77836015,234.29,234.2,6.77836015]
[1738017658547,4.2698,234.26,234.2,6.77836015]
[1738017658752,6.77836015,234.29,234.2,6.77836015]
[1738017658953,0.03169217,234.25,234.21,0.02785902]
[1738017659156,4.2703,234.23,234.21,0.02785902]
[1738017659352,0.03169217,234.25,234.21,0.02785902]
[1738017660158,0.03169217,234.25,234.23,6.77836015]
[1738017660352,6.77836015,234.32,234.23,6.77836015]
[1738017660551,6.32704904,234.34,234.24,6.32704904]
[1738017661053,4.2682,234.35,234.22,11.94410729]
[1738017661346,0.03262885,234.31,234.26,4.2989722]
[1738017661548,0.03262885,234.31,234.26,170.55917138]
[1738017661947,0.03262885,234.31,234.29,4.2691]
[1738017662149,0.03262885,234.31,234.29,174.79889918]
[1738017664851,4.2678,234.37,234.29,174.79889918]
[1738017665056,4.268,234.36,234.29,174.79889918]
[1738017665957,0.02828586,234.35,234.3,0.027158]
[1738017667660,4.29648586,234.35,234.3,0.027158]
[1738017668860,4.2683,234.34,234.3,0.027158]
[1738017670163,4.2683,234.34,234.3,4.296158]
[1738017671257,4.2687,234.32,234.3,0.027158]
[1738017672360,0.02828586,234.35,234.3,0.027158]
[1738017672566,4.2689,234.31,234.3,0.027158]
[1738017676567,4.2689,234.31,234.3,5.8e-05]
[1738017679764,4.2707,234.21,234.14,1.3859]
[1738017679969,4.2707,234.21,234.14,171.91569918]
[1738017680668,4.2707,234.21,234.16,4.2714]
[1738017680972,0.02891068,234.2,234.16,4.2714]
[1738017681872,0.02891068,234.2,234.15,6.36276359]
[1738017682172,0.02891068,234.2,234.17,4.2713]
[1738017683480,0.02891068,234.2,234.15,10.63436359]
[1738017684076,4.29981068,234.2,234.16,4.2715]
[1738017684467,4.29981068,234.2,234.15,6.36276359]
[1738017685466,4.29981068,234.2,234.17,4.2714]
[1738017687372,6.33247564,234.24,234.17,4.2714]
[1738017687774,6.33247564,234.24,234.15,6.36276359]
[1738017687974,4.2705,234.22,234.18,4.2712]
[1738017688373,4.30098281,234.22,234.18,4.2712]
[1738017688873,0.03048281,234.22,234.18,4.2711]
[1738017689073,0.03048281,234.22,234.17,6.33247564]
[1738017689376,0.03048281,234.22,234.17,176.86227482]
[1738017689574,0.03048281,234.22,234.2,4.2707]
[1738017689872,0.03048281,234.22,234.17,6.33247564]
[1738017690180,4.2711,234.19,234.15,0.03028795]
[1738017690373,6.36295845,234.22,234.15,0.03028795]
[1738017690677,4.2716,234.16,234.15,0.03028795]
[1738017692974,6.33247564,234.17,234.15,0.03028795]
[1738017693176,4.2711,234.19,234.15,0.03028795]
[1738017696184,4.2712,234.18,234.15,0.03028795]
[1738017699988,4.2714,234.17,234.15,0.03028795]
[1738017703087,6.33247564,234.18,234.15,0.03028795]
[1738017703289,4.2714,234.17,234.15,0.03028795]
[1738017704589,4.2716,234.16,234.15,0.03028795]
[1738017708288,10.60407564,234.16,234.15,0.03028795]
[1738017716694,6.33247564,234.2,234.15,0.03028795]
[1738017716900,0.03048281,234.22,234.18,4.2712]
[1738017717101,0.03048281,234.22,234.16,6.33247564]
[1738017719102,4.2707,234.21,234.15,0.03028795]
[1738017719399,0.03048281,234.22,234.15,0.03028795]
[1738017719400,6.33247564,234.18,234.15,0.03028795]
[1738017719601,4.2716,234.16,234.15,0.03028795]
[1738017720103,6.33247564,234.18,234.15,0.03028795]
[1738017720302,6.33247564,234.21,234.15,0.03028795]
[1738017720498,0.03048281,234.22,234.15,0.03028795]
[1738017720800,0.03048281,234.22,234.17,4.2714]
[1738017723901,4.30098281,234.22,234.17,4.2714]
[1738017727804,4.2707,234.21,234.16,4.2714]
[1738017730906,4.2707,234.21,234.17,4.2714]
[1738017737015,6.36295845,234.22,234.17,4.2714]
[1738017737213,10.63345845,234.22,234.17,4.2714]
[1738017739110,4.2713,234.18,234.15,0.03028795]
[1738017740215,10.60377564,234.18,234.15,0.03028795]
[1738017743119,10.60377564,234.18,234.15,4.30198795]
[1738017743619,4.2713,234.18,234.15,4.30198795]
[1738017746222,6.33247564,234.2,234.15,0.03028795]
[1738017746424,4.2707,234.21,234.17,4.2713]
[1738017749426,10.63345845,234.22,234.17,4.2713]
[1738017756732,0.03048281,234.22,234.19,4.2709]
[1738017757032,0.03048281,234.22,234.17,6.33247564]
[1738017757331,0.20911,234.28,234.24,4.27]
[1738017758534,0.24007437,234.28,234.24,4.30189953]
[1738017760535,6.33247564,234.27,234.24,4.30189953]
[1738017766345,6.33247564,234.27,234.24,0.03189953]
[1738017766546,0.24007437,234.28,234.24,0.03189953]
[1738017766547,10.60247564,234.25,234.24,0.03189953]
[1738017769744,0.24007437,234.28,234.24,0.03189953]
[1738017770050,0.24007437,234.28,234.25,6.33247564]
[1738017770340,6.33247564,234.39,234.36,4.2679]
[1738017772841,6.33247564,234.39,234.37,4.2677]
[1738017776947,6.33247564,234.39,234.35,0.02697345]
[1738017779149,6.33247564,234.39,234.36,4.2678]
[1738017780952,6.33247564,234.39,234.37,4.2677]
[1738017795960,4.29558943,234.4,234.37,4.2677]
[1738017798670,0.02838943,234.4,234.37,4.2677]
[1738017817283,0.02838943,234.4,234.35,0.02697345]
[1738017817583,0.02838943,234.4,234.38,4.2676]
[1738017819276,0.02838943,234.4,234.35,0.02697345]
[1738017819482,0.02838943,234.4,234.37,4.2676]
[1738017823689,0.02838943,234.4,234.39,4.2674]
[1738017823885,0.02838943,234.4,234.35,0.02697345]
[1738017824584,0.02838943,234.4,234.37,4.2677]
[1738017825687,0.02838943,234.4,234.36,4.2679]
[1738017827385,4.29568943,234.4,234.36,4.2679]
[1738017828385,4.08592943,234.4,234.36,4.2679]
[1738017830691,4.267,234.41,234.37,4.2676]
[1738017830994,6.33247564,234.44,234.35,0.02697345]
[1738017832086,4.2671,234.41,234.38,4.2674]
[1738017832291,4.2671,234.41,234.35,0.02697345]
[1738017832790,4.2671,234.41,234.37,4.2676]
[1738017833989,6.33247564,234.44,234.36,6.33247564]
[1738017834189,6.33247564,234.5,234.39,6.33247564]
[1738017834394,6.33247564,234.5,234.41,6.33247564]
[1738017834688,4.2656,234.49,234.45,4.2661]
[1738017835093,4.2656,234.49,234.45,4.29770205]
[1738017836695,6.33247564,234.52,234.45,4.29770205]
[1738017836896,6.33247564,234.5,234.45,0.03160205]
[1738017837692,4.2658,234.48,234.45,0.03160205]
[1738017840797,10.59827564,234.48,234.45,0.03160205]
[1738017841297,4.2658,234.48,234.45,0.03160205]
[1738017841900,6.33247564,234.5,234.45,4.29790205]
[1738017841901,4.2656,234.49,234.45,4.29790205]
[1738017842304,6.33247564,234.5,234.45,0.03160205]
[1738017842704,10.59797564,234.5,234.46,4.2661]
[1738017843400,10.59797564,234.5,234.45,0.03160205]
[1738017843702,4.2656,234.49,234.45,0.03160205]
[1738017845706,4.2656,234.49,234.45,4.29790205]
[1738017846409,32.24367281,234.56,234.47,6.33247564]
[1738017846605,6.33247564,234.58,234.47,6.33247564]
[1738017847103,6.33247564,234.58,234.5,0.02805452]
[1738017847504,4.2647,234.55,234.51,4.2652]
[1738017848608,4.2642,234.57,234.52,4.265]
[1738017849907,3.49032556,234.59,234.52,4.265]
[1738017850107,4.2643,234.56,234.52,4.265]
[1738017852314,4.2641,234.57,234.52,4.265]
[1738017852519,3.49032556,234.59,234.52,4.265]
[1738017853813,4.2641,234.57,234.52,4.265]
[1738017854016,3.49032556,234.59,234.52,4.265]
[1738017854910,4.2644,234.56,234.52,4.265]
[1738017860414,3.49032556,234.59,234.52,4.265]
[1738017860619,4.2645,234.55,234.52,4.265]
[1738017860912,4.2645,234.55,234.5,6.36053016]
[1738017860913,6.53302564,234.6,234.51,4.2652]
[1738017861115,6.53302564,234.6,234.5,6.36053016]
[1738017861925,6.33247564,234.58,234.5,6.36053016]
[1738017862127,4.265,234.53,234.5,0.02805452]
[1738017862322,6.33247564,234.56,234.5,0.02805452]
[1738017862518,6.33247564,234.54,234.5,0.02805452]
[1738017862719,4.2652,234.51,234.5,0.02805452]
[1738017867630,6.33247564,234.54,234.5,0.02805452]
[1738017867833,4.2647,234.54,234.5,0.02805452]
[1738017868725,4.2645,234.55,234.5,0.02805452]
[1738017870427,2.8718,234.58,234.5,0.02805452]
[1738017871232,2.8718,234.58,234.52,4.265]
[1738017871433,2.8718,234.58,234.5,0.02805452]
[1738017871732,2.8718,234.58,234.53,4.2647]
[1738017872634,0.20055,234.6,234.57,4.2641]
[1738017874027,0.20055,234.6,234.56,4.29613759]
[1738017876334,0.20055,234.6,234.56,0.03183759]
[1738017876535,4.46415,234.6,234.56,0.03183759]
[1738017876834,4.2636,234.6,234.56,0.03183759]
[1738017880835,4.2636,234.6,234.56,4.29613759]
[1738017885446,4.2636,234.61,234.56,4.29613759]
[1738017885644,6.33247564,234.62,234.56,4.29613759]
[1738017887146,4.2636,234.6,234.56,4.29613759]
[1738017907056,4.2636,234.6,234.57,4.2641]
[1738017909755,4.2634,234.61,234.57,4.2641]
[1738017914167,4.2621,234.69,234.64,4.2628]
[1738017914369,4.2621,234.69,234.62,6.33247564]
[1738017914569,4.2621,234.69,234.64,0.03180782]
[1738017915168,4.2621,234.69,234.65,4.2627]
[1738017915369,4.2617,234.71,234.64,0.03180782]
[1738017915764,4.2617,234.71,234.66,4.2625]
[1738017916469,4.2618,234.7,234.65,4.2627]
[1738017917465,6.52985564,234.72,234.64,6.36428346]
[1738017917466,0.19738,234.72,234.64,6.36428346]
[1738017917672,0.19738,234.72,234.7,4.2618]
[1738017918266,0.19738,234.72,234.7,10.59427564]
[1738017918569,0.19738,234.72,234.71,4.2616]
[1738017922568,23.57109489,234.77,234.76,4.2607]
[1738017922777,23.57109489,234.77,234.76,181.12297482]
[1738017923570,43.97138232,234.79,234.76,176.86227482]
[1738017923770,43.97138232,234.79,234.78,4.2603]
[1738017924272,43.97138232,234.79,234.78,181.12257482]
[1738017924980,37.28338232,234.79,234.78,181.12257482]
[1738017926778,37.28338232,234.79,234.78,176.86227482]
[1738017927480,37.28338232,234.79,234.78,181.12257482]
[1738017927883,4.2595,234.83,234.78,181.12257482]
[1738017928581,4.2595,234.83,234.8,6.33247564]
[1738017929386,7.76037564,234.9,234.8,6.33247564]
[1738017929685,4.2597,234.82,234.8,6.33247564]
[1738017932794,6.33247564,234.88,234.79,0.02938831]
[1738017932988,2.9166,234.87,234.79,0.02938831]
[1738017934190,4.26,234.8,234.79,0.02938831]
[1738017935782,2.9166,234.87,234.78,170.52979918]
[1738017935783,4.2601,234.79,234.78,168.28579918]
[1738017935982,6.33247564,234.83,234.75,6.33247564]
[1738017936187,6.33247564,234.85,234.75,6.33247564]
[1738017936482,4.2607,234.76,234.75,6.33247564]
[1738017938288,0.02885532,234.78,234.75,6.33247564]
[1738017938594,0.02885532,234.78,234.77,6.33247564]
[1738017943691,0.02885532,234.78,234.77,10.59297564]
[1738017947101,4.2594,234.83,234.8,4.2599]
[1738017947301,4.2594,234.84,234.81,6.33247564]
[1738017948501,6.33247564,234.89,234.81,6.33247564]
[1738017948806,4.2591,234.85,234.81,6.33247564]
[1738017950199,4.2591,234.85,234.82,4.2595]
[1738017956803,2.8687,234.9,234.81,6.33247564]
[1738017957399,4.2585,234.88,234.85,4.259]
[1738017959006,4.2583,234.89,234.85,4.259]
[1738017959410,4.2583,234.89,234.86,4.2588]
[1738017963012,1.4841,234.9,234.84,6.36037744]
[1738017963208,1.4841,234.9,234.87,10.59117564]
[1738017964710,6.33247564,234.97,234.87,6.33247564]
[1738017964913,4.2577,234.93,234.89,4.2582]
[1738017965112,4.2577,234.93,234.9,0.03178957]
[1738017968819,4.2577,234.93,234.9,4.28988957]
[1738017969014,4.2574,234.95,234.9,0.03178957]
[1738017969319,10.43927564,234.99,234.9,0.03178957]
[1738017969523,10.43927564,234.99,234.91,4.2579]
[1738017970918,4.2569,234.97,234.91,4.2579]
[1738017971113,10.43927564,234.99,234.91,4.2579]
[1738017972021,10.43927564,234.99,234.91,10.59037564]
[1738017972221,4.2574,234.95,234.91,10.59037564]
[1738017973318,4.2571,234.96,234.92,4.2577]
[1738017973623,10.43927564,234.99,234.94,6.33247564]
[1738017973624,2.7237,234.99,234.94,6.33247564]
[1738017974311,2.7237,234.99,234.92,6.33247564]
[1738017975123,6.33247564,235.01,234.92,6.33247564]
[1738017975921,4.2566,234.99,234.95,4.2571]
[1738017976327,6.33247564,235.04,234.95,10.61665665]
[1738017977128,4.2564,235.0,234.95,10.61665665]
[1738017978031,4.2565,234.99,234.95,10.61665665]
[1738017978823,4.2558,235.04,234.99,4.2563]
[1738017979020,4.2558,235.04,234.95,174.64535583]
[1738017979929,4.2558,235.04,234.98,4.2566]
[1738017980825,4.2558,235.03,234.98,4.2566]
[1738017981331,4.2558,235.03,234.98,4.287437]
[1738017983729,4.2556,235.04,234.99,4.2563]
[1738017983928,4.2556,235.04,234.98,0.030837]
[1738017984428,4.256,235.02,234.98,4.287437]
[1738017986030,4.256,235.02,234.98,0.030837]
[1738017987424,4.2561,235.01,234.98,0.030837]
[1738017991636,4.2565,234.99,234.98,0.030837]
[1738017992336,4.257,234.96,234.89,6.33247564]
[1738017992537,6.33247564,234.97,234.87,6.33247564]
[1738017992933,4.2585,234.89,234.87,6.33247564]
[1738017993433,4.2585,234.88,234.87,6.33247564]
[1738017993836,4.2587,234.87,234.86,0.0307242]
[1738017995641,4.2585,234.89,234.86,0.0307242]
[1738017997350,0.03222996,234.9,234.86,0.0307242]
[1738017997545,4.2585,234.88,234.86,0.0307242]
[1738017998150,4.2585,234.88,234.87,6.33247564]
[1738017999051,0.03222996,234.9,234.87,6.33247564]
[1738017999052,4.29052996,234.9,234.87,6.33247564]
[1738017999455,0.03222996,234.9,234.89,6.33247564]
[1738018002954,0.03222996,234.9,234.89,10.59077564]
[1738018003558,4.3317,235.01,234.89,170.13737482]
[1738018003856,1.4457,235.01,234.95,6.33247564]
[1738018004655,1.4457,235.01,234.96,0.0305904]
[1738018005055,5.7019,235.01,234.97,4.2568]
[1738018005553,1.4457,235.01,234.96,0.0305904]
[1738018005753,6.33247564,235.05,234.96,0.0305904]
[1738018007156,4.256,235.02,234.98,4.2566]
[1738018010562,4.2557,235.04,235.0,4.2562]
[1738018011062,4.2557,235.04,235.0,4.28617366]
[1738018016873,6.33247564,235.08,235.0,4.28617366]
[1738018017173,4.2558,235.03,235.0,4.28617366]